bitfinex-derivatives/quotes_BNBF0:USTF0_20250511
["timestamp","ask_amount","ask_price","bid_price","bid_amount"]
[1746968133361,0.3041455,657.58,656.45,1.45466649]
[1746968133661,0.3041455,657.58,656.46,0.27934463]
[1746968133858,0.3041455,657.58,656.47,0.27934463]
[1746968134059,0.3041455,657.58,656.48,1.17532186]
[1746968134261,0.3041455,657.58,656.48,1.45466649]
[1746968134565,0.3041455,657.58,656.49,1.45466649]
[1746968134862,0.3041455,657.58,656.5,1.45466649]
[1746968135062,0.3041455,657.58,656.51,0.27934463]
[1746968135256,0.3041455,657.58,656.52,1.17532186]
[1746968135460,0.3041455,657.58,656.52,1.45466649]
[1746968135662,0.3041455,657.58,656.53,0.27934463]
[1746968135860,0.3041455,657.58,656.54,0.27934463]
[1746968136065,0.3041455,657.58,656.55,0.27934463]
[1746968136364,0.3041455,657.58,656.56,1.17532186]
[1746968136659,0.3041455,657.58,656.57,0.27934463]
[1746968136964,0.3041455,657.58,656.58,1.17532186]
[1746968137765,0.26465589,657.57,656.59,0.27934463]
[1746968138164,0.26465589,657.57,656.6,1.17532186]
[1746968138465,0.26465589,657.57,656.61,0.27934463]
[1746968138964,0.26465589,657.57,656.62,1.17532186]
[1746968139365,0.26465589,657.57,656.63,0.27934463]
[1746968139864,0.26465589,657.57,656.64,1.17532186]
[1746968140366,0.30415937,657.55,656.65,0.27934463]
[1746968140661,0.30415937,657.55,656.66,1.17532186]
[1746968140858,0.26465287,657.54,656.66,1.17532186]
[1746968141163,0.30417325,657.52,656.67,0.27934463]
[1746968141464,0.30417325,657.52,656.68,1.17532186]
[1746968141864,0.30417325,657.52,656.69,0.27934463]
[1746968142065,0.30417325,657.52,656.7,1.17532186]
[1746968142364,0.30417325,657.52,656.71,1.17532186]
[1746968142566,0.30417325,657.52,656.71,1.45466649]
[1746968143066,0.30417325,657.52,656.72,0.27934463]
[1746968143565,0.30417325,657.52,656.73,1.17532186]
[1746968143766,0.2646408,657.51,656.73,1.17532186]
[1746968143966,0.3041825,657.5,656.74,0.27934463]
[1746968144265,0.3041825,657.5,656.75,1.17532186]
[1746968144666,0.3041825,657.5,656.76,1.17532186]
[1746968144867,0.3041825,657.5,656.77,0.2794319]
[1746968145761,0.3041825,657.5,656.36,0.2794319]
[1746968145967,0.3041825,657.5,656.78,0.2794319]
[1746968146467,0.3041825,657.5,656.36,0.2794319]
[1746968146766,0.26468005,657.49,656.36,0.2794319]
[1746968147268,0.26468005,657.49,656.37,1.43858467]
[1746968147566,0.26468005,657.49,656.38,0.27943298]
[1746968147769,0.26468005,657.49,656.39,1.17389355]
[1746968148063,0.26468005,657.49,656.4,1.17389355]
[1746968148265,0.26468005,657.49,656.41,0.27943298]
[1746968148767,0.26468005,657.49,656.42,1.17389355]
[1746968149163,0.26468005,657.49,656.43,0.27943298]
[1746968149468,0.3041825,657.5,656.44,1.17389355]
[1746968149767,0.3041825,657.5,656.45,1.45332653]
[1746968149768,0.26469011,657.48,656.45,1.45332653]
[1746968150168,0.26469011,657.48,656.46,0.27943298]
[1746968150468,0.26469011,657.48,656.47,1.17389355]
[1746968150665,0.26469011,657.48,656.47,1.45332653]
[1746968150865,0.26469011,657.48,656.48,1.17389355]
[1746968151065,0.26469011,657.48,656.48,1.45332653]
[1746968151266,0.26469011,657.48,656.49,1.45332653]
[1746968151666,0.26469011,657.48,656.5,0.27943298]
[1746968151867,0.26469011,657.48,656.51,1.17389355]
[1746968152067,0.30420101,657.46,656.51,1.45332653]
[1746968152262,0.30420101,657.46,656.52,0.27943298]
[1746968152467,0.30420101,657.46,656.52,1.45332653]
[1746968152767,0.26468306,657.45,656.52,1.45332653]
[1746968152966,0.30421489,657.43,656.53,1.45332653]
[1746968153368,0.30421489,657.43,656.54,0.27943298]
[1746968153868,0.30421489,657.43,656.55,1.17389355]
[1746968154067,0.30421489,657.43,656.56,0.27943298]
[1746968154468,0.30421489,657.43,656.57,1.17389355]
[1746968154664,0.30421489,657.43,656.58,1.17389355]
[1746968154869,0.30421489,657.43,656.58,1.45332653]
[1746968155070,0.30421489,657.43,656.59,0.27943298]
[1746968155669,0.30421489,657.43,656.6,1.17389355]
[1746968155970,0.26460558,657.42,656.6,1.17389355]
[1746968156169,0.30422878,657.4,656.61,1.45332653]
[1746968156469,0.30422878,657.4,656.62,0.27943298]
[1746968156668,0.30422878,657.4,656.63,1.17389355]
[1746968157171,0.30422878,657.4,656.64,0.27943298]
[1746968157474,0.30422878,657.4,656.64,1.45332653]
[1746968157869,0.30422878,657.4,656.65,0.27943298]
[1746968158070,0.30422878,657.4,656.66,1.17389355]
[1746968158671,0.30422878,657.4,656.67,1.45332653]
[1746968159073,0.30422878,657.4,656.68,0.27943298]
[1746968159773,0.30422878,657.4,656.36,0.27943298]
[1746968160272,0.30422878,657.4,656.37,1.45220905]
[1746968160473,0.30422878,657.4,656.38,0.27943298]
[1746968160667,0.30422878,657.4,656.38,1.45220905]
[1746968160868,0.30422878,657.4,656.39,0.27943298]
[1746968161073,0.30422878,657.4,656.4,1.45220905]
[1746968161374,0.30422878,657.4,656.4,1.17277607]
[1746968161574,0.30422878,657.4,656.38,1.17277607]
[1746968161774,0.30422878,657.4,656.39,0.27944119]
[1746968161976,0.30422878,657.4,656.4,1.17277607]
[1746968162174,0.30422878,657.4,656.4,1.45221726]
[1746968162572,0.30422878,657.4,656.41,1.45221726]
[1746968162974,0.30422878,657.4,656.42,1.45221726]
[1746968163274,0.30422878,657.4,656.43,0.27944119]
[1746968163575,0.30422878,657.4,656.44,0.27944119]
[1746968163877,0.30422878,657.4,656.45,1.45221726]
[1746968164277,0.30422878,657.4,656.46,1.17277607]
[1746968164575,0.30422878,657.4,656.46,1.45221726]
[1746968164775,0.30422878,657.4,656.47,1.45221726]
[1746968164972,0.30422878,657.4,656.48,0.27944119]
[1746968165277,0.30422878,657.4,656.49,0.27944119]
[1746968165478,0.30422878,657.4,656.49,1.45221726]
[1746968165776,0.30422878,657.4,656.5,0.27944119]
[1746968166076,0.30422878,657.4,656.51,0.27944119]
[1746968166277,0.30422878,657.4,656.52,1.17277607]
[1746968166579,0.30422878,657.4,656.52,1.45221726]
[1746968166778,0.30422878,657.4,656.35,0.30471547]
[1746968166779,0.30422878,657.4,656.53,1.45221726]
[1746968167076,0.30422878,657.4,656.35,0.30471547]
[1746968167077,0.30422878,657.4,656.54,1.45221726]
[1746968167377,0.30422878,657.4,656.55,0.27944119]
[1746968167678,0.30422878,657.4,656.56,1.17277607]
[1746968167977,0.30422878,657.4,656.57,0.27944119]
[1746968168477,0.30422878,657.4,656.58,1.17277607]
[1746968168678,0.30422878,657.4,656.59,0.27944119]
[1746968169178,0.30422878,657.4,656.6,1.17277607]
[1746968169478,0.30422878,657.4,656.61,0.27944119]
[1746968171379,0.30422878,657.4,656.36,0.27944119]
[1746968171675,0.30422878,657.4,656.37,0.27944119]
[1746968171874,0.30422878,657.4,656.38,1.17381593]
[1746968172080,0.30422878,657.4,656.38,1.45325712]
[1746968172279,0.30422878,657.4,656.39,0.27944119]
[1746968172479,0.30422878,657.4,656.4,1.45325712]
[1746968172980,0.30422878,657.4,656.41,1.45325712]
[1746968173579,0.30422878,657.4,656.42,1.17381593]
[1746968173779,0.30422878,657.4,656.42,1.45325712]
[1746968174074,0.30422878,657.4,656.43,1.45325712]
[1746968174279,0.30422878,657.4,656.44,1.17381593]
[1746968174479,0.30422878,657.4,656.45,0.27944119]
[1746968174881,0.30422878,657.4,656.46,1.17381593]
[1746968175078,0.30422878,657.4,656.47,0.27944119]
[1746968175381,0.30422878,657.4,656.48,1.17381593]
[1746968175680,0.30422878,657.4,656.49,0.27944119]
[1746968176581,0.30422878,657.4,656.36,0.27944119]
[1746968176985,0.30422878,657.4,656.37,1.17418]
[1746968177177,0.30422878,657.4,656.37,1.45362119]
[1746968177377,0.30422878,657.4,656.38,1.45362119]
[1746968177683,0.30422878,657.4,656.39,1.45362119]
[1746968177886,0.30422878,657.4,656.4,0.27944119]
[1746968178185,0.30422878,657.4,656.41,1.17418]
[1746968178584,0.30422878,657.4,656.42,0.27944119]
[1746968178785,0.30422878,657.4,656.35,0.30471547]
[1746968179186,0.30422878,657.4,656.36,0.27954655]
[1746968179487,0.30422878,657.4,656.37,1.17542181]
[1746968179787,0.30422878,657.4,656.38,1.45496836]
[1746968180088,0.30422878,657.4,656.39,0.27954655]
[1746968180281,0.30422878,657.4,656.4,1.17542181]
[1746968180781,0.30422878,657.4,656.41,0.27954655]
[1746968181286,0.30422878,657.4,656.36,0.27954655]
[1746968181687,0.26470823,657.39,656.37,1.17506838]
[1746968181981,0.26470823,657.39,656.38,1.17506838]
[1746968182180,0.26470823,657.39,656.38,1.45461493]
[1746968182380,0.26470823,657.39,656.39,1.17506838]
[1746968182686,0.26470823,657.39,656.4,0.27954181]
[1746968182886,0.26470823,657.39,656.41,1.17506838]
[1746968183287,0.26470823,657.39,656.42,0.27954181]
[1746968183789,0.26470823,657.39,656.43,1.17456379]
[1746968184287,0.26470823,657.39,656.44,0.27954181]
[1746968184883,0.26470823,657.39,656.36,0.27954181]
[1746968185489,0.30422878,657.4,656.36,0.27954181]
[1746968185682,0.30422878,657.4,656.37,1.17475327]
[1746968186083,0.30422878,657.4,656.38,0.27954181]
[1746968186289,0.30422878,657.4,656.39,1.17475327]
[1746968186488,0.30422878,657.4,656.4,1.17475327]
[1746968186890,0.30422878,657.4,656.41,1.45429508]
[1746968187389,0.30422878,657.4,656.42,0.27954181]
[1746968187590,0.30422878,657.4,656.43,1.17475327]
[1746968187993,0.30422878,657.4,656.44,0.27954181]
[1746968188692,0.30422878,657.4,656.45,1.17475327]
[1746968189295,0.30422878,657.4,656.46,0.27954181]
[1746968189794,0.30422878,657.4,656.47,1.17475327]
[1746968190091,0.30422878,657.4,656.48,0.27951571]
[1746968190795,0.30422878,657.4,656.49,1.17475327]
[1746968191191,0.30422878,657.4,656.5,0.27951571]
[1746968191896,0.30422878,657.4,656.36,0.27951571]
[1746968192195,0.30422878,657.4,656.37,1.1753894]
[1746968192590,0.30422878,657.4,656.38,1.45490511]
[1746968192890,0.30422878,657.4,656.39,0.27951571]
[1746968193095,0.30422878,657.4,656.4,1.1753894]
[1746968193497,0.30422878,657.4,656.41,0.27951571]
[1746968193798,0.30422878,657.4,656.4,1.1753894]
[1746968194097,0.30422878,657.4,656.41,0.27951543]
[1746968194291,0.30422878,657.4,656.42,1.1753894]
[1746968194795,0.30422878,657.4,656.43,0.27951543]
[1746968195297,0.30422878,657.4,656.44,1.1753894]
[1746968195698,0.30422878,657.4,656.45,0.27951543]
[1746968196199,0.30422878,657.4,656.46,1.1753894]
[1746968196801,0.30422878,657.4,656.47,0.27951543]
[1746968197201,0.30422878,657.4,656.48,1.1753894]
[1746968197704,0.30422878,657.4,656.49,0.27951543]
[1746968197897,0.30422878,657.4,656.5,1.1753894]
[1746968198401,0.30422878,657.4,656.51,0.27951543]
[1746968198903,0.30422878,657.4,656.52,1.1753894]
[1746968199301,0.30422878,657.4,656.53,0.27951543]
[1746968199501,0.30422878,657.4,656.54,1.1753894]
[1746968199801,0.30422878,657.4,656.55,0.27951543]
[1746968200301,0.26463677,657.39,656.55,0.27951543]
[1746968200497,0.26463677,657.39,656.36,0.27951543]
[1746968200697,0.30424266,657.37,656.37,1.17653595]
[1746968201199,0.30424266,657.37,656.38,0.27951543]
[1746968201397,0.30424266,657.37,656.39,1.17653595]
[1746968201602,0.30424266,657.37,656.4,0.27951543]
[1746968201903,0.30424266,657.37,656.41,1.17653595]
[1746968202104,0.30424266,657.37,656.42,0.27951543]
[1746968202502,0.30424266,657.37,656.43,1.17653595]
[1746968202999,0.30424266,657.37,656.44,0.27951543]
[1746968203303,0.30424266,657.37,656.45,1.17653595]
[1746968203500,0.30424266,657.37,656.46,0.27951543]
[1746968203902,0.30424266,657.37,656.47,1.17653595]
[1746968204303,0.30424266,657.37,656.48,0.27951543]
[1746968204502,0.30424266,657.37,656.49,1.17653595]
[1746968205102,0.30424266,657.37,656.5,0.27951543]
[1746968205303,0.30424266,657.37,656.51,1.17653595]
[1746968205700,0.30424266,657.37,656.52,0.27951543]
[1746968206003,0.30424266,657.37,656.53,1.17653595]
[1746968206303,0.30424266,657.37,656.54,0.27951543]
[1746968206503,0.30424266,657.37,656.55,1.17653595]
[1746968206903,0.30424266,657.37,656.56,0.27951543]
[1746968207098,0.2646408,657.36,656.56,0.27951543]
[1746968207300,0.2646408,657.36,656.57,1.17653595]
[1746968207502,0.2646408,657.36,656.58,0.27951543]
[1746968207905,0.2646408,657.36,656.59,1.17653595]
[1746968208104,0.2646408,657.36,656.6,0.27951543]
[1746968208405,0.30425192,657.35,656.6,0.27951543]
[1746968209006,0.30425192,657.35,656.36,0.27951543]
[1746968209206,0.30425192,657.35,656.61,1.17819882]
[1746968209606,0.30425192,657.35,656.37,0.27951543]
[1746968209799,0.30425192,657.35,656.62,0.27951543]
[1746968209999,0.30425192,657.35,656.39,0.27951543]
[1746968210306,0.30425192,657.35,656.4,1.45779868]
[1746968210705,0.30425192,657.35,656.41,1.45779868]
[1746968211005,0.30425192,657.35,656.42,1.45779868]
[1746968211406,0.30425192,657.35,656.43,0.27951543]
[1746968211605,0.30425192,657.35,656.44,0.27951543]
[1746968211909,0.30425192,657.35,656.45,1.45779868]
[1746968212206,0.30425192,657.35,656.46,0.27951543]
[1746968212406,0.30425192,657.35,656.47,1.17828325]
[1746968212603,0.30425192,657.35,656.47,1.45779868]
[1746968212907,0.30425192,657.35,656.48,0.27951543]
[1746968213101,0.26470521,657.34,656.48,0.27951543]
[1746968213304,0.3042658,657.32,656.49,1.45779868]
[1746968213500,0.3042658,657.32,656.5,0.27951543]
[1746968213704,0.3042658,657.32,656.51,1.17828325]
[1746968214207,0.3042658,657.32,656.52,0.27951543]
[1746968214504,0.3042658,657.32,656.53,1.17828325]
[1746968214904,0.3042658,657.32,656.54,0.27951543]
[1746968215703,0.3042658,657.32,656.55,1.1792797]
[1746968215906,0.3042658,657.32,656.56,0.27951543]
[1746968216209,0.26467602,657.31,656.56,0.27951543]
[1746968216509,0.30427506,657.3,656.57,1.1792797]
[1746968216905,0.30427506,657.3,656.58,0.27951543]
[1746968217509,0.30427506,657.3,656.36,0.27951543]
[1746968217709,0.30427506,657.3,656.37,1.179511]
[1746968218111,0.30427506,657.3,656.38,0.27951543]
[1746968218411,0.30427506,657.3,656.38,1.45902643]
[1746968218612,0.30427506,657.3,656.39,1.179511]
[1746968218812,0.30427506,657.3,656.39,1.45902643]
[1746968219014,0.26473944,657.29,656.4,0.27951543]
[1746968219312,0.30428895,657.27,656.41,1.179511]
[1746968219717,0.30428895,657.27,656.42,0.27951543]
[1746968220114,0.30428895,657.27,656.43,1.179511]
[1746968220514,0.30428895,657.27,656.44,0.27951543]
[1746968220817,0.30428895,657.27,656.45,1.179511]
[1746968221118,0.30428895,657.27,656.46,0.27951543]
[1746968221618,0.30428895,657.27,656.47,1.179511]
[1746968222320,0.30428895,657.27,656.48,0.27951543]
[1746968222520,0.30428895,657.27,656.49,1.179511]
[1746968222821,0.30428895,657.27,656.5,0.27951543]
[1746968223021,0.30428895,657.27,656.51,1.179511]
[1746968223514,0.30428895,657.27,656.52,0.27951543]
[1746968223920,0.30428895,657.27,656.53,1.179511]
[1746968224520,0.30428895,657.27,656.54,0.27951543]
[1746968224916,0.30428895,657.27,656.55,1.179511]
[1746968225120,0.26465992,657.26,656.56,0.27951543]
[1746968225321,0.30428895,657.27,656.57,1.179511]
[1746968225823,0.30428895,657.27,656.36,1.179511]
[1746968226315,0.30428895,657.27,656.37,0.27941889]
[1746968226521,0.30428895,657.27,656.38,1.179511]
[1746968227019,0.30428895,657.27,656.39,0.27941889]
[1746968227423,0.30428895,657.27,656.38,1.179511]
[1746968227624,0.30428895,657.27,656.4,1.179511]
[1746968227818,0.30428895,657.27,656.41,1.179511]
[1746968228021,0.30428895,657.27,656.42,1.179511]
[1746968228423,0.30428895,657.27,656.43,0.27941288]
[1746968228623,0.30428895,657.27,656.44,1.179511]
[1746968229024,0.30428895,657.27,656.45,1.45892388]
[1746968229324,0.30428895,657.27,656.46,1.45892388]
[1746968229618,0.30428895,657.27,656.47,1.179511]
[1746968229925,0.30428895,657.27,656.48,1.179511]
[1746968230323,0.30428895,657.27,656.49,1.45892388]
[1746968230520,0.30428895,657.27,656.5,0.27941288]
[1746968230820,0.30428895,657.27,656.51,1.179511]
[1746968231224,0.30428895,657.27,656.52,0.27941288]
[1746968231524,0.30428895,657.27,656.53,1.179511]
[1746968231924,0.30428895,657.27,656.54,0.27941288]
[1746968232129,0.30428895,657.27,656.54,1.45892388]
[1746968232624,0.30428895,657.27,656.54,1.179511]
[1746968233023,0.30428895,657.27,656.55,1.179511]
[1746968233222,0.30428895,657.27,656.56,1.179511]
[1746968234225,0.30428895,657.27,656.57,1.179511]
[1746968235028,0.30428895,657.27,656.58,1.179511]
[1746968235928,0.30428895,657.27,656.59,1.179511]
[1746968236326,0.30428895,657.27,656.6,1.179511]
[1746968236825,0.30428895,657.27,656.61,1.179511]
[1746968237028,0.30428895,657.27,656.62,1.179511]
[1746968237826,0.30428895,657.27,656.63,1.179511]
[1746968238328,0.30428895,657.27,656.64,1.179511]
[1746968239027,0.30428895,657.27,656.65,1.179511]
[1746968239426,0.30428895,657.27,656.66,1.179511]
[1746968240227,0.30428895,657.27,656.67,1.179511]
[1746968240728,0.30428895,657.27,656.68,1.179511]
[1746968241827,0.30428895,657.27,656.69,1.179511]
[1746968242229,0.30428895,657.27,656.7,1.179511]
[1746968242428,0.30428895,657.27,656.71,0.27945476]
[1746968242628,0.30428895,657.27,656.71,1.45896576]
[1746968242829,0.30428895,657.27,656.72,1.45896576]
[1746968243029,0.30428895,657.27,656.73,0.27945476]
[1746968243531,0.30428895,657.27,656.36,0.27945476]
[1746968243830,0.30428895,657.27,656.37,1.17729063]
[1746968244034,0.30428895,657.27,656.38,0.27945476]
[1746968244331,0.30428895,657.27,656.35,0.30471547]
[1746968244332,0.30428895,657.27,656.39,1.45674539]
[1746968244631,0.30428895,657.27,656.4,0.27945476]
[1746968244831,0.30428895,657.27,656.41,0.27945476]
[1746968245131,0.30428895,657.27,656.4,1.17729063]
[1746968245333,0.30428895,657.27,656.41,1.45672067]
[1746968245533,0.30428895,657.27,656.42,0.27943004]
[1746968245834,0.30428895,657.27,656.43,1.17729063]
[1746968246035,0.30428895,657.27,656.44,0.27943004]
[1746968246431,0.30428895,657.27,656.45,1.17729063]
[1746968246734,0.30428895,657.27,656.46,0.27943004]
[1746968247033,0.30428895,657.27,656.47,1.17729063]
[1746968247231,0.30428895,657.27,656.48,0.27943004]
[1746968247733,0.30428895,657.27,656.49,0.27943004]
[1746968247934,0.30428895,657.27,656.49,1.45672067]
[1746968248134,0.30428895,657.27,656.5,1.45672067]
[1746968248732,0.30428895,657.27,656.51,1.17729063]
[1746968249236,0.30428895,657.27,656.51,1.45672067]
[1746968249636,0.30428895,657.27,656.52,0.27943004]
[1746968249837,0.30428895,657.27,656.53,1.17729063]
[1746968250237,0.30428895,657.27,656.54,0.27943004]
[1746968250640,0.30428895,657.27,656.55,1.17729063]
[1746968250937,0.30428895,657.27,656.56,0.27943004]
[1746968251339,0.30428895,657.27,656.57,1.17729063]
[1746968251738,0.30428895,657.27,656.58,0.27943004]
[1746968251935,0.30428895,657.27,656.59,1.17729063]
[1746968252644,0.30428895,657.27,656.6,0.27943004]
[1746968252943,0.30428895,657.27,656.61,1.17729063]
[1746968253242,0.30428895,657.27,656.62,0.27943004]
[1746968253542,0.30428895,657.27,656.63,1.17729063]
[1746968254045,0.30428895,657.27,656.64,0.27943004]
[1746968254243,0.30428895,657.27,656.65,1.17729063]
[1746968254743,0.30428895,657.27,656.66,0.27943004]
[1746968255043,0.30428895,657.27,656.67,1.17729063]
[1746968255344,0.30428895,657.27,656.68,0.27943004]
[1746968255644,0.30428895,657.27,656.69,1.17729063]
[1746968255944,0.30428895,657.27,656.7,0.27943004]
[1746968256344,0.30428895,657.27,656.71,1.17729063]
[1746968256550,0.30428895,657.27,656.72,0.27943004]
[1746968256844,0.30428895,657.27,656.73,1.17729063]
[1746968257344,0.30428895,657.27,656.74,0.27943004]
[1746968257546,0.30428895,657.27,656.75,1.17729063]
[1746968257840,0.30428895,657.27,656.76,0.27943004]
[1746968258046,0.30428895,657.27,656.77,1.17729063]
[1746968258647,0.30428895,657.27,656.78,0.27943004]
[1746968259146,0.30428895,657.27,656.79,1.17729063]
[1746968259547,0.30428895,657.27,656.8,0.27943004]
[1746968259847,0.30428895,657.27,656.81,1.17729063]
[1746968260048,0.30428895,657.27,656.82,0.27943004]
[1746968261050,0.30428895,657.27,656.36,0.27943004]
[1746968261351,0.30428895,657.27,656.37,1.17751623]
[1746968261753,0.30428895,657.27,656.38,0.27943004]
[1746968261950,0.30428895,657.27,656.39,1.17751623]
[1746968262453,0.30428895,657.27,656.4,0.27942157]
[1746968262653,0.30428895,657.27,656.41,1.17751623]
[1746968262853,0.30428895,657.27,656.42,0.27942157]
[1746968263150,0.30428895,657.27,656.43,1.17751623]
[1746968263357,0.30428895,657.27,656.43,1.4569378]
[1746968263555,0.30428895,657.27,656.44,1.4569378]
[1746968263856,0.30428895,657.27,656.45,0.27942157]
[1746968264057,0.30428895,657.27,656.46,1.17751623]
[1746968264256,0.30428895,657.27,656.46,1.4569378]
[1746968264455,0.30428895,657.27,656.47,1.17751623]
[1746968264756,0.30428895,657.27,656.47,1.4569378]
[1746968264956,0.30428895,657.27,656.48,1.17751623]
[1746968265156,0.30428895,657.27,656.48,1.4569378]
[1746968265456,0.30428895,657.27,656.49,1.17751623]
[1746968265649,0.30428895,657.27,656.49,1.4569378]
[1746968265854,0.30428895,657.27,656.5,1.17751623]
[1746968266152,0.30428895,657.27,656.5,1.4569378]
[1746968266355,0.30428895,657.27,656.51,1.4569378]
[1746968266850,0.30428895,657.27,656.52,1.4569378]
[1746968267057,0.30428895,657.27,656.53,0.27942157]
[1746968267357,0.30428895,657.27,656.54,0.27942157]
[1746968267557,0.30428895,657.27,656.55,1.17751623]
[1746968267757,0.30428895,657.27,656.55,1.4569378]
[1746968268058,0.30428895,657.27,656.56,1.17751623]
[1746968268257,0.30428895,657.27,656.56,1.4569378]
[1746968268562,0.30428895,657.27,656.57,1.4569378]
[1746968268760,0.30428895,657.27,656.58,0.27942157]
[1746968269059,0.30428895,657.27,656.57,1.17751623]
[1746968269060,0.30428895,657.27,656.59,0.27942157]
[1746968269259,0.30428895,657.27,656.6,1.17751623]
[1746968269558,0.30428895,657.27,656.6,1.4569378]
[1746968269757,0.30428895,657.27,656.61,1.4569378]
[1746968270058,0.30428895,657.27,656.62,0.27942157]
[1746968270252,0.30428895,657.27,656.62,1.4569378]
[1746968270754,0.30428895,657.27,656.63,0.27942157]
[1746968270961,0.30428895,657.27,656.63,1.4569378]
[1746968271160,0.30428895,657.27,656.64,1.17751623]
[1746968271361,0.30428895,657.27,656.65,0.27942157]
[1746968271563,0.30428895,657.27,656.66,1.17751623]
[1746968271962,0.30428895,657.27,656.67,0.27942157]
[1746968272663,0.30428895,657.27,656.68,1.17751623]
[1746968273061,0.30428895,657.27,656.69,0.27942157]
[1746968273563,0.30428895,657.27,656.7,1.17751623]
[1746968274070,0.30428895,657.27,656.71,1.17877116]
[1746968274364,0.30428895,657.27,656.71,1.4582065]
[1746968274563,0.30428895,657.27,656.72,1.4582065]
[1746968274862,0.30428895,657.27,656.73,0.27943534]
[1746968275063,0.30428895,657.27,656.73,1.4582065]
[1746968275364,0.30428895,657.27,656.74,0.27943534]
[1746968275560,0.30428895,657.27,656.75,1.17877116]
[1746968276063,0.30428895,657.27,656.76,0.27943534]
[1746968276463,0.30428895,657.27,656.77,1.17877116]
[1746968276960,0.30428895,657.27,656.78,0.27943534]
[1746968277766,0.30428895,657.27,656.36,0.27943534]
[1746968278065,0.30428895,657.27,656.37,0.27943534]
[1746968278365,0.30428895,657.27,656.38,0.27943534]
[1746968278666,0.30428895,657.27,656.39,1.4589252]
[1746968278970,0.30428895,657.27,656.4,1.4589252]
[1746968279266,0.30428895,657.27,656.41,0.27943534]
[1746968279464,0.30428895,657.27,656.42,0.27943534]
[1746968279664,0.30428895,657.27,656.43,1.17948986]
[1746968279966,0.30428895,657.27,656.43,1.4589252]
[1746968280265,0.30428895,657.27,656.44,0.27943534]
[1746968280466,0.30428895,657.27,656.45,1.17948986]
[1746968280665,0.30428895,657.27,656.45,1.4589252]
[1746968281069,0.30428895,657.27,656.46,1.17948986]
[1746968281267,0.30428895,657.27,656.46,1.4589252]
[1746968281568,0.30428895,657.27,656.47,1.17948986]
[1746968281868,0.30428895,657.27,656.47,1.4589252]
[1746968282063,0.30428895,657.27,656.48,0.27943534]
[1746968282266,0.30428895,657.27,656.48,1.4589252]
[1746968282468,0.30428895,657.27,656.49,0.27943534]
[1746968282767,0.30428895,657.27,656.5,0.27943534]
[1746968283069,0.30428895,657.27,656.51,1.17948986]
[1746968283267,0.30428895,657.27,656.51,1.4589252]
[1746968283470,0.30428895,657.27,656.52,1.17948986]
[1746968283768,0.30428895,657.27,656.52,1.4589252]
[1746968283970,0.30428895,657.27,656.53,1.4589252]
[1746968284269,0.30428895,657.27,656.54,0.27943534]
[1746968284669,0.30428895,657.27,656.55,0.27943534]
[1746968284870,0.30428895,657.27,656.55,1.4589252]
[1746968285070,0.30428895,657.27,656.55,1.17948986]
[1746968285469,0.30428895,657.27,656.56,0.27943534]
[1746968286072,0.30428895,657.27,656.57,1.17948986]
[1746968286571,0.30428895,657.27,656.58,0.27943534]
[1746968286772,0.30428895,657.27,656.59,1.17948986]
[1746968287175,0.30428895,657.27,656.6,0.27943534]
[1746968287570,0.30428895,657.27,656.61,1.17948986]
[1746968287775,0.30428895,657.27,656.62,0.27943534]
[1746968288074,0.30428895,657.27,656.63,1.17948986]
[1746968288371,0.30428895,657.27,656.64,0.27943534]
[1746968288576,0.30428895,657.27,656.65,1.17948986]
[1746968289478,0.30428895,657.27,656.66,0.27943534]
[1746968290078,0.30428895,657.27,656.67,1.17948986]
[1746968290379,0.30428895,657.27,656.68,0.27943534]
[1746968290579,0.30428895,657.27,656.69,1.17948986]
[1746968291278,0.30428895,657.27,656.7,0.27943534]
[1746968291574,0.26463979,657.26,656.7,0.27943534]
[1746968291879,0.26463979,657.26,656.71,1.17948986]
[1746968292180,0.26463979,657.26,656.72,0.27943534]
[1746968292474,0.26463979,657.26,656.73,1.17948986]
[1746968292678,0.26463979,657.26,656.74,0.27943534]
[1746968292979,0.26463979,657.26,656.75,1.17948986]
[1746968293278,0.26463979,657.26,656.76,0.27943534]
[1746968293475,0.30428895,657.27,656.76,0.27943534]
[1746968293872,0.30428895,657.27,656.77,1.17948986]
[1746968294177,0.30428895,657.27,656.78,0.27943534]
[1746968294381,0.30428895,657.27,656.79,1.17948986]
[1746968294583,0.26463275,657.26,656.79,1.17948986]
[1746968294881,0.26463275,657.26,656.8,0.27943534]
[1746968295483,0.26463275,657.26,656.36,0.27943534]
[1746968295781,0.26463275,657.26,656.37,0.27943534]
[1746968295982,0.26463275,657.26,656.37,1.4593403]
[1746968296184,0.26463275,657.26,656.38,0.27943534]
[1746968296585,0.30428895,657.27,656.38,0.27943534]
[1746968296783,0.30428895,657.27,656.39,1.17990496]
[1746968297284,0.30428895,657.27,656.4,0.27943534]
[1746968297784,0.30428895,657.27,656.41,1.17990496]
[1746968298086,0.30428895,657.27,656.42,0.27943534]
[1746968298578,0.30428895,657.27,656.43,1.17990496]
[1746968299078,0.30428895,657.27,656.44,0.27943824]
[1746968299479,0.30428895,657.27,656.45,1.17990496]
[1746968299777,0.30428895,657.27,656.46,1.4593432]
[1746968300082,0.30428895,657.27,656.47,0.27943824]